[Event "23rd Hoogeveen Open 2019"]
[Site "Hoogeveen"]
[Date "2019.10.23"]
[Round "6.30"]
[White "Slagboom, Leandro"]
[Black "Djukic, Sandra"]
[Result "1/2-1/2"]
[ECO "A09"]
[WhiteElo "1954"]
[BlackElo "2179"]
[Annotator "RC"]
[PlyCount "107"]
[EventDate "2019.10.19"]
[EventType "swiss"]
[EventCountry "NED"]
[SourceTitle "playchess.com"]
[Source "ChessBase"]
[SourceQuality "1"]
[TimeControl "40/5400+30:1800+30"]

1. Nf3 {[%emt 0:00:00]} d5 {[%emt 0:09:08]} 2. c4 {[%emt 0:00:00]} d4 {[%emt 0:00:08]} 3. b4 {[%emt 0:00:00]} g6 {[%emt 0:00:06]} 4. Bb2 {[%emt 0:03:38]} Bg7 {[%emt 0:00:29]} 5. e3 {[%emt 0:02:56]} e5 {[%emt 0:00:05]} 6. exd4 {[%emt 0:01:27]} exd4 {[%emt 0:00:05]} 7. d3 {[%emt 0:02:29]} Ne7 {[%emt 0:00:21]} 8. g3 {[%emt 0:03:16]} O-O {[%emt 0:00:32]} 9. Bg2 {[%emt 0:00:08]} Nec6 {[%emt 0:30:13]} 10. b5 {[%emt 0:14:26]} Re8+ {[%emt 0:03:25]} 11. Kf1 {[%emt 0:00:27]} Ne5 {[%emt 0:06:42]} 12. Nxe5 {[%emt 0:02:51]} Rxe5 {[%emt 0:00:58]} 13. Nd2 {[%emt 0:04:01]} c5 {[%emt 0:03:26]} 14. Nb3 {[%emt 0:07:29]} Nd7 {[%emt 0:14:45]} 15. Qd2 {[%emt 0:06:16]} a5 {[%emt 0:03:23]} 16. a4 {[%emt 0:02:15]} Ra7 {[%emt 0:01:33]} 17. h3 {[%emt 0:04:37]} b6 {[%emt 0:03:11]} 18. Re1 {[%emt 0:05:01]} Rxe1+ {[%emt 0:04:47]} 19. Kxe1 {[%emt 0:05:30]} h5 {[%emt 0:11:05]} 20. Kd1 {[%emt 0:02:16]} Nf8 {[%emt 0:02:28]} 21. Re1 {[%emt 0:01:08]} h4 {[%emt 0:00:40]} 22. g4 {[%emt 0:01:21]} Qd6 {[%emt 0:02:11]} 23. f4 {[%emt 0:01:50]} Ne6 {[%emt 0:01:07]} 24. Bc1 {[%emt 0:00:19]} Bh6 {[%emt 0:00:25]} 25. g5 {[%emt 0:00:12]} Bf8 {[%emt 0:00:01]} 26. Qf2 {[%emt 0:01:02]} Ng7 {[%emt 0:00:38]} 27. Qxh4 {[%emt 0:00:47]} Nf5 {[%emt 0:01:04]} 28. Qf2 {[%emt 0:00:11]} Be6 {[%emt 0:00:08]} 29. Be4 {[%emt 0:04:23]} Ne3+ {[%emt 0:00:41]} 30. Bxe3 {[%emt 0:00:38]} dxe3 {[%emt 0:00:03]} 31. Rxe3 {[%emt 0:02:37]} Bxc4 {[%emt 0:00:04]} 32. Nd2 {[%emt 0:00:14]} Be6 {[%emt 0:00:49]} 33. f5 {[%emt 0:00:59]} Ba2 {[%emt 0:01:15]} 34. fxg6 {[%emt 0:02:48]} Bg7 {[%emt 0:00:25]} 35. Qg3 {[%emt 0:05:50]} Be5 {[%emt 0:00:03]} 36. Qg4 {[%emt 0:01:00]} c4 {[%emt 0:01:03]} 37. Qc8+ {[%emt 0:02:02]} Kg7 {[%emt 0:00:02]} 38. Nxc4 {[%emt 0:01:47]} Qd4 {[%emt 0:00:51]} 39. Rf3 {[%emt 0:02:32]} Bxc4 {[%emt 0:00:22]} 40. Qxc4 {[%emt 0:00:24]} Qxc4 {[%emt 0:00:44]} 41. dxc4 {[%emt 0:30:05]} fxg6 {[%emt 0:30:03]} 42. Bd5 {[%emt 0:02:07]} Bd4 {[%emt 0:00:00]} 43. Kd2 {[%emt 0:00:00]} Re7 {[%emt 0:00:00]} 44. Kd3 {[%emt 0:00:00]} Bc5 {[%emt 0:00:00]} 45. h4 {[%emt 0:00:00]} Re1 {[%emt 0:00:00]} 46. Rf7+ {[%emt 0:00:00]} Kh8 {[%emt 0:00:00]} 47. h5 {[%emt 0:00:00]} Re3+ {[%emt 0:00:00]} 48. Kd2 {[%emt 0:00:00]} Re7 {[%emt 0:00:00]} 49. hxg6 {[%emt 0:04:55]} Rxf7 {[%emt 0:00:00]} 50. gxf7 {[%emt 0:00:06]} Kg7 {[%emt 0:00:00]} 51. Kd3 {[%emt 0:00:41]} Bb4 {[%emt 0:00:00]} 52. Ke4 {[%emt 0:00:19]} Bc5 {[%emt 0:00:00]} 53. Kf5 {[%emt 0:00:05]} Bb4 {[%emt 0:00:00]} 54. Ke4 {[%emt 0:00:32]} 1/2-1/2

[Event "23rd Hoogeveen Open 2019"]
[Site "Hoogeveen"]
[Date "2019.10.23"]
[Round "6.31"]
[White "Vogel, Jaap"]
[Black "Merkon, Oseb"]
[Result "1-0"]
[ECO "E62"]
[WhiteElo "2123"]
[BlackElo "1930"]
[Annotator "ChessBase"]
[PlyCount "59"]
[EventDate "2019.10.19"]
[EventType "swiss"]
[EventCountry "NED"]
[SourceTitle "playchess.com"]
[Source "ChessBase"]
[SourceQuality "1"]
[TimeControl "40/5400+30:1800+30"]

1. d4 {[%emt 0:00:00]} Nf6 {[%emt 0:00:00]} 2. Nf3 {[%emt 0:00:08]} g6 {[%emt 0:00:00]} 3. g3 {[%emt 0:00:08]} Bg7 {[%emt 0:00:00]} 4. Bg2 {[%emt 0:00:08]} O-O {[%emt 0:00:00]} 5. O-O {[%emt 0:00:34]} d6 {[%emt 0:00:13]} 6. c4 {[%emt 0:00:30]} Nfd7 {[%emt 0:00:16]} 7. Nc3 {[%emt 0:02:07]} Nc6 {[%emt 0:00:18]} 8. e3 {[%emt 0:07:49]} e5 {[%emt 0:01:27]} 9. b3 {[%emt 0:03:43]} f5 {[%emt 0:02:34]} 10. Bb2 {[%emt 0:04:43]} g5 {[%emt 0:28:09]} 11. d5 {[%emt 0:05:27]} Na5 {[%emt 0:08:02]} 12. Nd2 {[%emt 0:04:42]} b6 {[%emt 0:01:03]} 13. b4 {[%emt 0:02:38]} Nb7 {[%emt 0:00:25]} 14. f4 {[%emt 0:01:34]} e4 {[%emt 0:09:10]} 15. Rb1 {[%emt 0:15:27]} g4 {[%emt 0:02:47]} 16. Nb3 {[%emt 0:04:32]} Nf6 {[%emt 0:03:46]} 17. Nd4 {[%emt 0:12:43]} Qe8 {[%emt 0:06:01]} 18. Ncb5 {[%emt 0:12:02]} Qf7 {[%emt 0:01:21]} 19. Ne6 {[%emt 0:00:39]} Bxe6 {[%emt 0:01:53]} 20. dxe6 {[%emt 0:01:25]} Qe7 {[%emt 0:00:14]} 21. Nd4 {[%emt 0:03:26]} c5 {[%emt 0:09:07]} 22. Nxf5 {[%emt 0:00:39]} Qxe6 {[%emt 0:00:10]} 23. Nxg7 {[%emt 0:01:11]} Kxg7 {[%emt 0:00:14]} 24. f5 {[%emt 0:01:49]} Qxc4 {[%emt 0:01:33]} 25. Qxg4+ {[%emt 0:02:44]} Kf7 {[%emt 0:00:01]} 26. Qg5 {[%emt 0:01:17]} Ke7 {[%emt 0:00:32]} 27. Qg7+ {[%emt 0:00:17]} Qf7 {[%emt 0:00:54]} 28. Bxf6+ {[%emt 0:00:05]} Ke8 {[%emt 0:00:26]} 29. Bxe4 {[%emt 0:01:09]} Rb8 {[%emt 0:01:53]} 30. Bc6+ {[%emt 0:00:25]} 1-0

[Event "23rd Hoogeveen Open 2019"]
[Site "Hoogeveen"]
[Date "2019.10.23"]
[Round "6.32"]
[White "Albers, Sasa"]
[Black "Van der Veen, Jan"]
[Result "1-0"]
[ECO "C85"]
[WhiteElo "1975"]
[BlackElo "2043"]
[Annotator "NA RC"]
[PlyCount "101"]
[EventDate "2019.10.19"]
[EventType "swiss"]
[EventCountry "NED"]
[SourceTitle "playchess.com"]
[Source "ChessBase"]
[SourceQuality "1"]
[TimeControl "40/5400+30:1800+30"]

1. e4 {[%emt 0:00:00]} e5 {[%emt 0:02:54]} 2. Nf3 {[%emt 0:00:00]} Nc6 {[%emt 0:00:09]} 3. Bb5 {[%emt 0:00:00]} a6 {[%emt 0:00:06]} 4. Ba4 {[%emt 0:00:00]} Nf6 {[%emt 0:00:09]} 5. O-O {[%emt 0:00:00]} Be7 {[%emt 0:02:18]} 6. Bxc6 {[%emt 0:00:00]} dxc6 {[%emt 0:00:05]} 7. d3 {[%emt 0:00:02]} Nd7 {[%emt 0:01:06]} 8. Nbd2 {[%emt 0:00:20]} f6 {[%emt 0:01:22]} 9. Nc4 {[%emt 0:01:48]} Nc5 {[%emt 0:03:31]} 10. h3 {[%emt 0:00:35] C85: Closed Ruy Lopez: Deferred Exchange Variation} (10. Nh4 g6 11. b3 a5 12. a4 O-O 13. Bb2 Ne6 14. h3 Bc5 15. Nf3 b6 16. Qd2 Qe7 17. Rad1 Ba6 {0-1 (65) Kokarev,D (2598)-Alekseenko,K (2638) Khanty-Mansiysk 2018}) 10... Be6 {[%emt 0:08:09]} 11. Ne3 {[%emt 0:00:31]} Qd7 {[%emt 0:10:57]} 12. a4 {[%emt 0:04:52]} a5 {[%emt 0:01:42]} 13. Bd2 {[%emt 0:14:56]} b6 {[%emt 0:03:58]} 14. Qe2 {[%emt 0:02:01]} O-O $146 {[%emt 0:05:21]} ({Predecessor:} 14... g5 15. g4 h5 16. Nf5 hxg4 17. hxg4 O-O-O {0-1 (25) Kitts,G-Moody,D Dearborn 1986}) 15. Rfe1 {[%emt 0:08:21]} Rad8 {[%emt 0:08:30]} 16. Nf1 {[%emt 0:02:32]} Nb7 {[%emt 0:08:48]} 17. Ng3 {[%emt 0:00:47]} Bb4 {[%emt 0:03:34]} 18. Bxb4 {[%emt 0:30:35]} axb4 {[%emt 0:00:31]} 19. d4 {[%emt 0:00:26]} exd4 {[%emt 0:03:12]} 20. Red1 {[%emt 0:00:05]} c5 {[%emt 0:02:03]} 21. e5 {[%emt 0:03:06]} f5 {[%emt 0:07:29]} 22. Nh5 {[%emt 0:02:09]} h6 {[%emt 0:04:52]} 23. Nf4 {[%emt 0:00:35]} Na5 {[%emt 0:00:41]} 24. Re1 {[%emt 0:07:40]} Rfe8 {[%emt 0:02:55]} 25. b3 {[%emt 0:03:25]} Qf7 {[%emt 0:02:05]} 26. Rad1 {[%emt 0:01:11]} g5 {[%emt 0:00:52]} 27. Nxe6 {[%emt 0:00:21]} Rxe6 {[%emt 0:00:44]} 28. h4 {[%emt 0:05:33]} g4 {[%emt 0:03:26]} 29. Nd2 {[%emt 0:00:02]} Qh5 {[%emt 0:02:58]} 30. Nc4 {[%emt 0:05:17]} Nc6 {[%emt 0:04:40]} 31. g3 {[%emt 0:01:13]} Rde8 {[%emt 0:00:20]} 32. Ra1 {[%emt 0:03:48]} Kh8 {[%emt 0:00:45]} 33. Qd2 {[%emt 0:01:17]} Kh7 {[%emt 0:01:55]} 34. Qf4 {[%emt 0:00:50]} Ne7 {[%emt 0:02:07]} 35. a5 {[%emt 0:00:31]} Nd5 {[%emt 0:00:27]} 36. Qc1 {[%emt 0:01:15]} b5 {[%emt 0:00:25]} 37. Nb2 {[%emt 0:00:13]} c4 {[%emt 0:01:21]} 38. bxc4 {[%emt 0:00:20]} bxc4 {[%emt 0:00:38]} 39. Nxc4 {[%emt 0:01:59]} Ra8 {[%emt 0:01:10]} 40. Qd2 {[%emt 0:00:02]} c5 {[%emt 0:00:22]} 41. Qd3 {[%emt 0:04:14]} Qg6 {[%emt 0:11:56] [#]} 42. h5 $1 {[%emt 0:10:23]} Qxh5 {[%emt 0:04:46]} 43. Nd6 {[%emt 0:00:15]} Qg6 {[%emt 0:12:22]} 44. Qb5 {[%emt 0:01:49]} Ne7 {[%emt 0:02:58]} 45. Qb7 $18 {[%emt 0:02:31]} Rf8 {[%emt 0:00:36]} 46. a6 {[%emt 0:09:22]} f4 {[%emt 0:00:02]} 47. a7 {[%emt 0:01:26]} fxg3 {[%emt 0:00:39]} 48. fxg3 {[%emt 0:00:01]} Rf3 {[%emt 0:00:54]} 49. Qe4 {[%emt 0:01:49]} Rxg3+ {[%emt 0:00:50]} 50. Kh2 {[%emt 0:00:11]} Rh3+ {[%emt 0:00:25]} 51. Kg2 {[%emt 0:00:02]} 1-0

[Event "23rd Hoogeveen Open 2019"]
[Site "Hoogeveen"]
[Date "2019.10.23"]
[Round "6.33"]
[White "Achuthan, Dylan"]
[Black "Noordenbos, Daan"]
[Result "1-0"]
[ECO "C12"]
[WhiteElo "1865"]
[BlackElo "2133"]
[Annotator "ChessBase"]
[PlyCount "49"]
[EventDate "2019.10.19"]
[EventType "swiss"]
[EventCountry "NED"]
[SourceTitle "playchess.com"]
[Source "ChessBase"]
[SourceQuality "1"]
[TimeControl "40/5400+30:1800+30"]

1. e4 {[%emt 0:00:00]} e6 {[%emt 0:00:00]} 2. d4 {[%emt 0:00:00]} d5 {[%emt 0:00:00]} 3. Nc3 {[%emt 0:00:00]} Bb4 {[%emt 0:00:00]} 4. Nge2 {[%emt 0:00:02]} Nf6 {[%emt 0:04:16]} 5. Bg5 {[%emt 0:00:12]} dxe4 {[%emt 0:02:43]} 6. a3 {[%emt 0:01:04]} Be7 {[%emt 0:03:33]} 7. Bxf6 {[%emt 0:02:25]} Bxf6 {[%emt 0:02:30]} 8. Nxe4 {[%emt 0:00:23]} Be7 {[%emt 0:00:08]} 9. g3 {[%emt 0:00:31]} Bd7 {[%emt 0:04:50]} 10. Bg2 {[%emt 0:00:43]} Bc6 {[%emt 0:00:09]} 11. O-O {[%emt 0:00:10]} h5 {[%emt 0:04:37]} 12. Nf4 {[%emt 0:07:29]} h4 {[%emt 0:02:09]} 13. Qg4 {[%emt 0:21:44]} Kf8 {[%emt 0:15:39]} 14. Qf3 {[%emt 0:13:05]} Kg8 {[%emt 0:01:14]} 15. Qb3 {[%emt 0:13:25]} Rh6 {[%emt 0:08:42]} 16. Rad1 {[%emt 0:02:31]} g5 {[%emt 0:12:50]} 17. d5 {[%emt 0:05:49]} exd5 {[%emt 0:10:57]} 18. Nxd5 {[%emt 0:00:33]} Bd6 {[%emt 0:00:11]} 19. Qe3 {[%emt 0:07:55]} Rg6 {[%emt 0:01:54]} 20. c4 {[%emt 0:01:43]} b6 {[%emt 0:07:49]} 21. Nxd6 {[%emt 0:04:04]} Rxd6 {[%emt 0:03:58]} 22. Ne7+ {[%emt 0:00:13]} Kf8 {[%emt 0:00:18]} 23. Rxd6 {[%emt 0:00:14]} Qxd6 {[%emt 0:01:05]} 24. Nxc6 {[%emt 0:00:08]} Nxc6 {[%emt 0:00:06]} 25. Qf3 {[%emt 0:00:43]} 1-0

[Event "23rd Hoogeveen Open 2019"]
[Site "Hoogeveen"]
[Date "2019.10.23"]
[Round "6.34"]
[White "Shakhverdian, William"]
[Black "Labruyere, Roger"]
[Result "1-0"]
[ECO "A57"]
[WhiteElo "2109"]
[BlackElo "1932"]
[Annotator "RC"]
[PlyCount "107"]
[EventDate "2019.10.19"]
[EventType "swiss"]
[EventCountry "NED"]
[SourceTitle "playchess.com"]
[Source "ChessBase"]
[SourceQuality "1"]
[TimeControl "40/5400+30:1800+30"]

1. d4 {[%emt 0:00:00]} Nf6 {[%emt 0:00:00]} 2. c4 {[%emt 0:00:00]} c5 {[%emt 0:00:00]} 3. d5 {[%emt 0:00:10]} b5 {[%emt 0:00:00]} 4. Qc2 {[%emt 0:00:08]} bxc4 {[%emt 0:01:54]} 5. e4 {[%emt 0:00:18]} d6 {[%emt 0:00:06]} 6. Bxc4 {[%emt 0:00:06]} g6 {[%emt 0:01:00]} 7. Nf3 {[%emt 0:00:06]} Bg7 {[%emt 0:00:04]} 8. O-O {[%emt 0:00:05]} O-O {[%emt 0:00:05]} 9. h3 {[%emt 0:00:03]} Nbd7 {[%emt 0:01:13]} 10. Rd1 {[%emt 0:00:21]} Ne8 {[%emt 0:00:27]} 11. Bd2 {[%emt 0:01:37]} Nb6 {[%emt 0:01:04]} 12. Be2 {[%emt 0:03:03]} Nc7 {[%emt 0:00:28]} 13. Bc3 {[%emt 0:00:47]} f6 {[%emt 0:02:33]} 14. a4 {[%emt 0:02:32]} Bd7 {[%emt 0:06:55]} 15. b3 {[%emt 0:03:38]} Qe8 {[%emt 0:16:20]} 16. Na3 {[%emt 0:03:13]} Qf7 {[%emt 0:03:16]} 17. Nc4 {[%emt 0:06:53]} Nxc4 {[%emt 0:10:55]} 18. Bxc4 {[%emt 0:00:07]} Rab8 {[%emt 0:00:53]} 19. Qe2 {[%emt 0:18:44]} Na8 {[%emt 0:09:34]} 20. a5 {[%emt 0:02:54]} Nc7 {[%emt 0:03:11]} 21. Rab1 {[%emt 0:01:39]} Nb5 {[%emt 0:01:02]} 22. Bb2 {[%emt 0:00:34]} a6 {[%emt 0:03:01]} 23. Re1 {[%emt 0:02:58]} Rbc8 {[%emt 0:09:48]} 24. Qd2 {[%emt 0:01:21]} Rb8 {[%emt 0:04:36]} 25. Rbd1 {[%emt 0:02:52]} Kh8 {[%emt 0:06:31]} 26. Qc1 {[%emt 0:06:11]} Nc7 {[%emt 0:02:11]} 27. Qa1 {[%emt 0:01:20]} Bb5 {[%emt 0:01:02]} 28. Bc3 {[%emt 0:01:36]} Rb7 {[%emt 0:03:38]} 29. h4 {[%emt 0:03:09]} Bd7 {[%emt 0:01:24]} 30. Rd3 {[%emt 0:01:11]} Nb5 {[%emt 0:00:56]} 31. Bb2 {[%emt 0:01:25]} h5 {[%emt 0:06:45]} 32. Nh2 {[%emt 0:13:25]} Rbb8 {[%emt 0:03:46]} 33. f4 {[%emt 0:01:51]} Kh7 {[%emt 0:01:05]} 34. Rf1 {[%emt 0:11:39]} Qg8 {[%emt 0:00:44]} 35. Qd1 {[%emt 0:01:10]} Nd4 {[%emt 0:00:24]} 36. Bxd4 {[%emt 0:06:43]} cxd4 {[%emt 0:00:02]} 37. Qe2 {[%emt 0:01:04]} Bb5 {[%emt 0:00:45]} 38. Rxd4 {[%emt 0:00:06]} Rfc8 {[%emt 0:00:32]} 39. Nf3 {[%emt 0:01:41]} Qd8 {[%emt 0:00:06]} 40. e5 {[%emt 0:00:29]} Qxa5 {[%emt 0:00:39]} 41. exd6 {[%emt 0:32:26]} exd6 {[%emt 0:30:26]} 42. f5 {[%emt 0:00:05]} Be8 {[%emt 0:00:00]} 43. Bd3 {[%emt 0:00:00]} Qb6 {[%emt 0:00:00]} 44. Kh1 {[%emt 0:00:00]} Qxb3 {[%emt 0:00:00]} 45. fxg6+ {[%emt 0:00:00]} Bxg6 {[%emt 0:00:00]} 46. Ng5+ {[%emt 0:00:00]} fxg5 {[%emt 0:00:00]} 47. Qxh5+ {[%emt 0:00:00]} Kg8 {[%emt 0:00:00]} 48. Bxg6 {[%emt 0:00:00]} Bh6 {[%emt 0:00:00]} 49. Bf7+ {[%emt 0:00:00]} Kf8 {[%emt 0:00:00]} 50. Qxh6+ {[%emt 0:00:00]} Ke7 {[%emt 0:00:00]} 51. Qe6+ {[%emt 0:00:00]} Kf8 {[%emt 0:00:00]} 52. Be8+ {[%emt 0:00:00]} Kg7 {[%emt 0:00:06]} 53. Qg6+ {[%emt 0:00:00]} Kh8 {[%emt 0:00:00]} 54. Rf8# {[%emt 0:00:00]} 1-0

[Event "23rd Hoogeveen Open 2019"]
[Site "Hoogeveen"]
[Date "2019.10.23"]
[Round "6.35"]
[White "Fehr, Axel"]
[Black "Taams, Sander"]
[Result "0-1"]
[ECO "B94"]
[WhiteElo "2045"]
[BlackElo "2094"]
[Annotator "NA"]
[PlyCount "94"]
[EventDate "2019.10.19"]
[EventType "swiss"]
[EventCountry "NED"]
[SourceTitle "playchess.com"]
[Source "ChessBase"]
[SourceQuality "1"]
[TimeControl "40/5400+30:1800+30"]

1. e4 {[%emt 0:01:00]} c5 {[%emt 0:00:29]} 2. Nf3 {[%emt 0:00:10]} d6 {[%emt 0:00:04]} 3. d4 {[%emt 0:00:10]} cxd4 {[%emt 0:00:05]} 4. Nxd4 {[%emt 0:00:04]} Nf6 {[%emt 0:00:04]} 5. Nc3 {[%emt 0:00:06]} a6 {[%emt 0:00:03]} 6. Bg5 {[%emt 0:00:31]} Nbd7 {[%emt 0:00:59]} 7. Qe2 {[%emt 0:00:08] B94: Sicilian Najdorf: 6 Bg5 Nbd7} (7. Bc4 Qb6 8. Bb3 e6 9. Qd2 Be7 10. O-O-O Nc5 11. f3 Bd7 12. g4 Qc7 13. a3 b5 14. Ba2 Qb7 15. b4 {½-½ (36) Cheparinov,I (2666)-Saric,I (2681) Patras 2019}) 7... b5 {[%emt 0:00:34]} 8. a3 {[%emt 0:07:12]} Bb7 {[%emt 0:00:55]} 9. f4 {[%emt 0:04:13]} e5 $146 {[%emt 0:03:27]} ({Predecessor:} 9... h6 10. Bxf6 Nxf6 11. O-O-O Rc8 12. e5 Rxc3 13. exf6 Rc5 14. Qg4 gxf6 {0-1 (41) Acar,U (2050)-Kandil,A (2345) Mersin 2017}) 10. Nf5 {[%emt 0:13:39]} h6 {[%emt 0:01:14]} 11. fxe5 {[%emt 0:06:23]} dxe5 {[%emt 0:01:27]} 12. Bh4 {[%emt 0:02:51]} (12. Bxf6 $1 $11 Nxf6 13. Qf3) 12... Rc8 {[%emt 0:00:59]} 13. Nd5 {[%emt 0:07:46]} g5 {[%emt 0:03:34]} 14. Bg3 {[%emt 0:03:48]} Nxd5 {[%emt 0:05:01]} 15. exd5 {[%emt 0:05:49]} Qa5+ $1 {[%emt 0:06:37]} 16. c3 {[%emt 0:17:44]} Rxc3 {[%emt 0:05:06]} 17. Qd2 {[%emt 0:18:48] Pin} Bb4 {[%emt 0:01:21]} 18. Nd6+ {[%emt 0:03:27]} Bxd6 {[%emt 0:08:42]} 19. bxc3 {[%emt 0:01:27]} Nc5 {[%emt 0:00:54]} 20. Qe3 {[%emt 0:00:34]} O-O {[%emt 0:00:58]} 21. h4 {[%emt 0:00:37]} f5 {[%emt 0:01:09]} 22. hxg5 {[%emt 0:00:27]} f4 {[%emt 0:00:42]} 23. Qd2 {[%emt 0:00:53]} fxg3 {[%emt 0:02:23]} 24. Rxh6 {[%emt 0:01:29]} Rf2 {[%emt 0:13:33]} 25. Qe3 {[%emt 0:00:46]} Ne4 {[%emt 0:00:55]} 26. Rxd6 {[%emt 0:01:54]} Nxd6 {[%emt 0:02:56]} 27. Qxe5 {[%emt 0:00:05]} Nf7 {[%emt 0:03:43]} 28. Qxg3 {[%emt 0:00:25]} Rc2 {[%emt 0:00:41]} 29. g6 {[%emt 0:00:34]} Nd6 {[%emt 0:04:26]} 30. Qe5 {[%emt 0:01:19]} Qxc3+ {[%emt 0:00:19]} 31. Qxc3 {[%emt 0:00:01]} Rxc3 {[%emt 0:00:07]} 32. Be2 {[%emt 0:00:59]} Kg7 {[%emt 0:00:26]} 33. Bf3 {[%emt 0:00:07]} Kxg6 {[%emt 0:00:17]} 34. Kd2 $19 {[%emt 0:00:15]} Rb3 {[%emt 0:07:01]} 35. Kc2 {[%emt 0:00:57]} Re3 {[%emt 0:00:13]} 36. a4 {[%emt 0:00:44]} b4 {[%emt 0:00:24]} 37. a5 {[%emt 0:00:09]} b3+ {[%emt 0:00:21]} 38. Kd1 {[%emt 0:00:10]} Bxd5 {[%emt 0:05:36]} 39. Bxd5 {[%emt 0:00:39]} Rd3+ {[%emt 0:00:05]} 40. Kc1 {[%emt 0:00:48]} Rxd5 {[%emt 0:00:07]} 41. Ra4 {[%emt 0:01:38]} Rb5 {[%emt 0:01:17]} 42. Rd4 {[%emt 0:08:18]} Nb7 {[%emt 0:00:45]} 43. Rg4+ {[%emt 0:01:22]} Kh5 {[%emt 0:00:33]} 44. Rf4 {[%emt 0:03:35]} b2+ {[%emt 0:00:20]} 45. Kb1 {[%emt 0:00:06]} Nxa5 {[%emt 0:00:17]} 46. Ra4 {[%emt 0:00:41]} Nb3 {[%emt 0:01:03]} 47. g4+ {[%emt 0:00:36]} Kh4 {[%emt 0:01:14]} 0-1

[Event "23rd Hoogeveen Open 2019"]
[Site "Hoogeveen"]
[Date "2019.10.23"]
[Round "6.36"]
[White "Gijsen, William"]
[Black "Vasse, Albert"]
[Result "1-0"]
[ECO "B23"]
[WhiteElo "2091"]
[BlackElo "1934"]
[Annotator "NA"]
[PlyCount "83"]
[EventDate "2019.10.19"]
[EventType "swiss"]
[EventCountry "NED"]
[SourceTitle "playchess.com"]
[Source "ChessBase"]
[SourceQuality "1"]
[TimeControl "40/5400+30:1800+30"]

1. e4 {[%emt 0:00:00]} c5 {[%emt 0:00:29]} 2. Nc3 {[%emt 0:00:00]} Nc6 {[%emt 0:00:06]} 3. f4 {[%emt 0:00:01]} g6 {[%emt 0:00:07]} 4. Nf3 {[%emt 0:00:16]} Bg7 {[%emt 0:00:38]} 5. Bc4 {[%emt 0:00:31]} e6 {[%emt 0:00:10]} 6. d3 {[%emt 0:00:08]} Nge7 {[%emt 0:00:10]} 7. O-O {[%emt 0:00:14]} O-O {[%emt 0:03:20]} 8. Qe1 {[%emt 0:04:49]} d5 {[%emt 0:01:41]} 9. Bb3 {[%emt 0:00:27]} dxe4 {[%emt 0:26:22] B23: Closed Sicilian: Lines without g3} (9... Nd4 10. Nxd4 cxd4 11. Ne2 dxe4 {0-1 (41) Abarca Gonzalez,N (2409)-Alonso,S (2500) Villa Tehuelches 2019}) 10. dxe4 {[%emt 0:05:33]} Nd4 {[%emt 0:03:26]} 11. e5 $2 $146 {[%emt 0:06:18]} ({Predecessor:} 11. Nxd4 $11 cxd4 12. Ne2 b6 (12... a5 13. Ng3 a4 14. Bc4 d3 15. cxd3 b5 16. f5 exf5 17. exf5 Nxf5 18. Qe4 Qb6+ 19. Kh1 Nxg3+ 20. hxg3 {0-1 (28) Grabarczyk,S (1810)-Stock,A (2014) Brno 2018}) 13. Ng3 a5 14. f5 exf5 15. Bg5 Qc7 16. Bxe7 Qxe7 17. exf5 Qxe1 18. Raxe1 a4 19. Bc4 Ba6 20. Bxa6 Rxa6 {0-1 (41) Abarca Gonzalez,N (2409)-Alonso,S (2500) Villa Tehuelches 2019}) 11... Nef5 {[%emt 0:02:02]} 12. Qf2 {[%emt 0:10:45] [#]} (12. Be3 $11) 12... f6 {[%emt 0:11:59]} (12... Nxf3+ $1 $17 13. Qxf3 Qc7) 13. exf6 {[%emt 0:05:32]} Nxf3+ {[%emt 0:04:13]} 14. Qxf3 {[%emt 0:03:42]} Nd4 {[%emt 0:02:47]} 15. Qf2 {[%emt 0:10:50]} Bxf6 {[%emt 0:01:52]} 16. Ne4 {[%emt 0:04:58]} Nxb3 {[%emt 0:03:35]} 17. Nxf6+ {[%emt 0:01:17]} Qxf6 {[%emt 0:01:02]} 18. axb3 {[%emt 0:00:11]} b6 {[%emt 0:00:21]} 19. Qe3 {[%emt 0:02:49]} Bb7 {[%emt 0:01:49]} 20. Bd2 {[%emt 0:02:55]} Qd4 {[%emt 0:01:14]} 21. Qxd4 {[%emt 0:01:27]} cxd4 {[%emt 0:00:13]} 22. Bb4 {[%emt 0:01:19]} Rfd8 {[%emt 0:00:45]} 23. Be7 {[%emt 0:04:16]} Rd7 {[%emt 0:00:51]} 24. Bf6 {[%emt 0:00:08]} Kf7 {[%emt 0:02:53]} 25. Be5 {[%emt 0:00:07]} Be4 {[%emt 0:00:08]} 26. Rf2 {[%emt 0:05:39]} Rc8 {[%emt 0:00:57]} 27. Rc1 {[%emt 0:00:32]} Ke8 {[%emt 0:03:36]} 28. Rd2 {[%emt 0:04:16]} d3 $14 {[%emt 0:02:37]} 29. c3 {[%emt 0:00:41]} Rd5 {[%emt 0:00:52]} 30. Kf2 {[%emt 0:06:25]} h5 {[%emt 0:05:29]} 31. h3 {[%emt 0:00:44]} g5 {[%emt 0:01:25]} 32. g3 {[%emt 0:00:46]} gxf4 {[%emt 0:00:27]} 33. gxf4 {[%emt 0:00:06]} Bf5 {[%emt 0:00:12]} 34. Rg1 {[%emt 0:07:04]} Bxh3 {[%emt 0:05:08]} 35. c4 {[%emt 0:01:44]} Rdd8 {[%emt 0:07:00]} 36. Bf6 {[%emt 0:04:41]} Rd6 {[%emt 0:01:33]} 37. Be5 {[%emt 0:03:51]} Rdd8 {[%emt 0:00:01]} 38. Rg8+ {[%emt 0:00:37]} Kf7 {[%emt 0:00:32]} 39. Rg7+ {[%emt 0:00:06]} Kf8 {[%emt 0:00:16]} 40. Rh7 {[%emt 0:00:19]} Bg4 {[%emt 0:00:12]} 41. Bf6 {[%emt 0:30:39]} Be2 {[%emt 0:33:36]} 42. Rh8+ {[%emt 0:00:35]} 1-0

[Event "23rd Hoogeveen Open 2019"]
[Site "Hoogeveen"]
[Date "2019.10.23"]
[Round "6.37"]
[White "Klaren, Duncan"]
[Black "Mijnster, Niels"]
[Result "0-1"]
[ECO "B18"]
[WhiteElo "1923"]
[BlackElo "2145"]
[Annotator "ChessBase"]
[PlyCount "56"]
[EventDate "2019.10.19"]
[EventType "swiss"]
[EventCountry "NED"]
[SourceTitle "playchess.com"]
[Source "ChessBase"]
[SourceQuality "1"]
[TimeControl "40/5400+30:1800+30"]

1. e4 {[%emt 0:00:00]} c6 {[%emt 0:00:00]} 2. d4 {[%emt 0:00:00]} d5 {[%emt 0:00:00]} 3. Nc3 {[%emt 0:00:00]} dxe4 {[%emt 0:00:00]} 4. Nxe4 {[%emt 0:00:00]} Bf5 {[%emt 0:00:00]} 5. Ng3 {[%emt 0:00:00]} Bg6 {[%emt 0:00:00]} 6. Bc4 {[%emt 0:00:00]} e6 {[%emt 0:00:22]} 7. N1e2 {[%emt 0:00:00]} Nf6 {[%emt 0:01:13]} 8. Nf4 {[%emt 0:00:07]} Nd5 {[%emt 0:03:25]} 9. c3 {[%emt 0:03:44]} Nd7 {[%emt 0:08:59]} 10. O-O {[%emt 0:02:51]} N7f6 {[%emt 0:09:40]} 11. Re1 {[%emt 0:07:48]} Bd6 {[%emt 0:00:40]} 12. Nfh5 {[%emt 0:19:55]} Nxh5 {[%emt 0:06:13]} 13. Nxh5 {[%emt 0:00:12]} Bxh2+ {[%emt 0:01:46]} 14. Kf1 {[%emt 0:06:50]} Qh4 {[%emt 0:16:21]} 15. Nxg7+ {[%emt 0:21:08]} Kf8 {[%emt 0:00:56]} 16. Nxe6+ {[%emt 0:00:17]} fxe6 {[%emt 0:00:05]} 17. Qf3+ {[%emt 0:00:07]} Ke7 {[%emt 0:10:09]} 18. g3 {[%emt 0:04:42]} Qh3+ {[%emt 0:08:58]} 19. Qg2 {[%emt 0:00:08]} Bf5 {[%emt 0:00:01]} 20. Re5 {[%emt 0:02:44]} Raf8 {[%emt 0:07:12]} 21. Bg5+ {[%emt 0:01:41]} Kd7 {[%emt 0:00:41]} 22. Bh4 {[%emt 0:05:24]} Rhg8 {[%emt 0:02:15]} 23. Bxd5 {[%emt 0:07:10]} cxd5 {[%emt 0:04:03]} 24. Rxf5 {[%emt 0:00:19]} Qxf5 {[%emt 0:03:43]} 25. Qxh2 {[%emt 0:00:05]} Qc2 {[%emt 0:00:22]} 26. Re1 {[%emt 0:01:02]} Rf3 {[%emt 0:04:13]} 27. g4 {[%emt 0:03:02]} Qd3+ {[%emt 0:06:36]} 28. Re2 {[%emt 0:00:25]} Rh3 {[%emt 0:04:48]} 0-1